[Event "Israeli Championship 2022"]
[Site "Yosiah Arad"]
[Date "2022.12.13"]
[Round "9.7"]
[White "Gorodetzky, David"]
[Black "Levitan, Tal"]
[Result "1-0"]
[ECO "E04"]
[WhiteElo "2495"]
[BlackElo "2243"]
[Annotator "TA"]
[PlyCount "35"]
[EventDate "2022.12.05"]
[EventType "swiss"]
[EventCountry "ISR"]
[SourceTitle "playchess.com"]
[Source "ChessBase"]
[SourceQuality "1"]
[TimeControl "40/5400+30:1800+30"]

{[%evp 10,35,26,16,31,25,10,-8,21,15,23,27,44,11,14,22,154,179,254,133,473,481,481,486,833,825,794,789]} 1. d4 {[%emt 0:00:05]} Nf6 {[%emt 0:00:12]} 2. c4 {[%emt 0:00:18]} e6 {[%emt 0:00:05]} 3. Nf3 {[%emt 0:00:31]} d5 {[%emt 0:02:30]} 4. g3 {[%emt 0:00:31]} dxc4 {[%emt 0:03:22]} 5. Bg2 {[%emt 0:01:18]} a6 {[%emt 0:00:05]} 6. Ne5 {[%emt 0:00:37]} Bb4+ {[%emt 0:00:18] E04: Open Catalan: 5 Nf3.} 7. Nc3 $1 {[%emt 0:01:59] Threatens to win with Qa4+.} (7. Bd2 Qxd4 8. Qa4+ (8. Bxb4 Qxe5 9. Bc3 Qc5 $11) 8... Nbd7 9. Qxb4 Qxe5 $11) 7... Nd5 {[%emt 0:00:05]} 8. O-O {[%emt 0:02:09] Nxd5 is the strong threat.} (8. Nxc4 Nxc3 9. bxc3 Bxc3+ 10. Bd2 Bxa1 11. Qxa1 O-O $17) 8... Nxc3 {[%emt 0:03:42] The position is equal.} 9. bxc3 {[%emt 0:00:09]} Bxc3 {[%emt 0:00:03]} 10. Rb1 {[%emt 0:00:09][%cal Oc1a3] And now Ba3! would win.} Qxd4 {[%emt 0:01:34]} 11. Qa4+ {[%emt 0:04:43]} b5 $1 {[%emt 0:00:18]} 12. Qa3 {[%emt 0:01:12] [#] Black must now prevent Bf4.} b4 $146 {[%emt 0:27:31] [#]} (12... Qxe5 $11 13. Bf4 Qf6 14. Bxc7 (14. Bxa8 e5 $15) 14... Be5 15. Bxe5 Qxe5 16. Bxa8 Qc7) ({Predecessor:} 12... Qxe5 13. Bf4 Qf6 14. Bxc7 b4 15. Rxb4 Bxb4 16. Qxb4 a5 17. Qb5+ Bd7 18. Qxc4 Na6 19. Bxa8 Nxc7 20. Qxc7 {½-½ (30) Wen,Y (2594)-Xu,X (2569) Liaocheng 2021}) 13. Qa4+ $1 $16 {[%emt 0:04:39]} ({And not} 13. Rxb4 Bxb4 14. Qa4+ (14. Qxb4 Qxe5 15. Bxa8 Qb5 $15) 14... Nd7 15. Bxa8 Qxe5 $15) 13... Ke7 {[%emt 0:08:22] [#]} (13... Nd7 {was necessary.}) 14. Bf4 {[%emt 0:13:23]} (14. Rxb4 $1 $18 Bxb4 15. Qxb4+ c5 16. Qa3 Qxe5 17. Bf4) 14... Bd7 $2 {[%emt 0:14:55][%mdl 8192] This costs Black the game.} (14... g5 $16 {is more resistant.} 15. Bxg5+ (15. Bxa8 gxf4 16. Rxb4 Qxe5 $15) 15... f6) 15. Nxd7 $18 {[%emt 0:06:13][%mdl 64] Discovered Attack. White is clearly winning.} Qxd7 {[%emt 0:01:02]} 16. Qa5 {[%emt 0:00:04]} c6 {[%emt 0:09:13]} (16... Rc8 $142 17. Bxa8 Qb5 18. Bxc7 Bd2 19. Qxb5 axb5) 17. Qc5+ {[%emt 0:02:53]} Ke8 {[%emt 0:03:58]} 18. Bxb8 {[%emt 0:00:13] Weighted Error Value: White=0.10 (very precise) /Black=0.67} 1-0

[Event "Israeli Championship 2022"]
[Site "Yosiah Arad"]
[Date "2022.12.13"]
[Round "9.8"]
[White "Rozen, Eytan"]
[Black "Parkhov, Yair"]
[Result "1/2-1/2"]
[ECO "B51"]
[WhiteElo "2459"]
[BlackElo "2470"]
[Annotator "TA"]
[PlyCount "34"]
[EventDate "2022.12.05"]
[EventType "swiss"]
[EventCountry "ISR"]
[SourceTitle "playchess.com"]
[Source "ChessBase"]
[SourceQuality "1"]
[TimeControl "40/5400+30:1800+30"]

{[%evp 9,34,6,12,18,32,25,27,31,40,8,15,-2,0,0,0,-4,-16,-8,-12,-10,-14,-20,0,0,0,0,21]} 1. e4 {[%emt 0:00:04]} c5 {[%emt 0:00:09]} 2. Nf3 {[%emt 0:00:04]} d6 {[%emt 0:00:05]} 3. Bb5+ {[%emt 0:00:11]} Nd7 {[%emt 0:00:06]} 4. O-O {[%emt 0:00:13]} a6 {[%emt 0:00:06]} 5. Bd3 {[%emt 0:00:02]} Ngf6 {[%emt 0:00:07]} 6. c3 {[%emt 0:00:05] B51: Sicilian: Moscow Variation (3 Bb5+) without 3...Bd7.} e5 {[%emt 0:00:04]} 7. Bc2 {[%emt 0:00:12]} b5 {[%emt 0:00:36]} 8. d4 {[%emt 0:00:05] White has an edge.} Bb7 {[%emt 0:05:50]} 9. a4 {[%emt 0:02:06]} Be7 {[%emt 0:06:53] [#] The position is equal.} ({Resist} 9... Nxe4 10. Qe2 Nef6 11. dxe5 dxe5 12. axb5 $16) (9... Bxe4 $2 10. Bxe4 Nxe4 11. dxe5 dxe5 12. Qe2 $16) 10. axb5 $146 {[%emt 0:00:52]} ({Predecessor:} 10. Qe2 O-O 11. d5 c4 12. Na3 Nc5 13. Bd2 Qb6 14. Be3 Bc8 15. h3 Bd7 16. Nd2 {½-½ (36) Kalogeris,I (2307)-Espinosa Veloz,E (2485) Chess.com INT 2020}) 10... axb5 {[%emt 0:02:17]} 11. Rxa8 {[%emt 0:00:03]} Qxa8 {[%emt 0:00:14]} 12. Na3 {[%emt 0:00:19]} cxd4 {[%emt 0:04:08]} 13. cxd4 {[%emt 0:00:17]} O-O {[%emt 0:01:07]} 14. dxe5 {[%emt 0:01:24]} dxe5 {[%emt 0:03:20]} 15. Nxb5 {[%emt 0:00:06]} Bxe4 {[%emt 0:05:46]} 16. Bxe4 {[%emt 0:00:19]} Qxe4 {[%emt 0:00:07]} 17. Re1 {[%emt 0:00:01]} Qc6 {[%emt 0:07:36] Weighted Error Value: White=0.05 (flawless) /Black=0.05 (flawless)} 1/2-1/2

[Event "Israeli Championship 2022"]
[Site "Yosiah Arad"]
[Date "2022.12.13"]
[Round "9.9"]
[White "Iliaguev, Nisim"]
[Black "Streltsov, Alexey"]
[Result "1-0"]
[ECO "A20"]
[WhiteElo "2364"]
[BlackElo "2313"]
[Annotator "TA"]
[PlyCount "95"]
[EventDate "2022.12.05"]
[EventType "swiss"]
[EventCountry "ISR"]
[SourceTitle "playchess.com"]
[Source "ChessBase"]
[SourceQuality "1"]
[TimeControl "40/5400+30:1800+30"]

{[%evp 9,95,0,0,0,16,0,24,20,37,40,31,45,38,38,64,65,100,96,97,101,141,155,154,167,175,177,165,131,126,133,120,111,127,128,129,126,137,122,149,139,262,256,255,115,100,100,109,112,118,124,117,126,108,77,176,165,363,358,278,118,124,116,208,221,253,244,239,237,225,217,206,0,199,81,72,35,34,39,32,33,187,181,250,249,249,241,575,543]} 1. c4 {[%emt 0:00:04] ChessBase II} e5 {[%emt 0:00:07]} 2. g3 {[%emt 0:00:06]} c6 {[%emt 0:00:07]} 3. Bg2 {[%emt 0:00:15]} d5 {[%emt 0:00:13]} 4. cxd5 {[%emt 0:00:05]} cxd5 {[%emt 0:00:06]} 5. d4 {[%emt 0:00:05]} e4 {[%emt 0:02:51]} 6. Nc3 {[%emt 0:04:06] A20: English Opening: 1...e5.} Nc6 {[%emt 0:03:15]} 7. Nh3 {[%emt 0:02:25]} Be7 {[%emt 0:03:33]} 8. O-O {[%emt 0:03:22] White has an edge.} Bf6 {[%emt 0:06:49]} 9. Nf4 {[%emt 0:09:39]} Nge7 {[%emt 0:00:11]} 10. e3 {[%emt 0:02:19]} Bg5 $1 {[%emt 0:01:49] [#]} 11. Nh3 $146 {[%emt 0:07:11][%mdl 2048] White has some pressure.} ({Predecessor:} 11. Nh5 O-O 12. f4 exf3 13. Qxf3 Nb4 14. Bd2 Bf5 15. h4 Qd7 16. hxg5 Bg4 17. Nf6+ gxf6 18. Qxf6 {½-½ (47) Podzielny,K (2435)-Murey,J (2535) France 1987 EXT 2005 [ChessBase II]}) 11... h6 {[%emt 0:10:13]} 12. f3 {[%emt 0:04:08]} f5 {[%emt 0:06:17]} 13. fxe4 {[%emt 0:03:56]} fxe4 {[%emt 0:00:09]} 14. Bd2 {[%emt 0:06:23]} Be6 {[%emt 0:06:53]} 15. Qh5+ $1 {[%emt 0:14:09]} Kd7 {[%emt 0:15:04]} (15... g6 $2 16. Nxg5 gxh5 17. Nxe6 $18) 16. Nxg5 {[%emt 0:01:28] White is more active.} hxg5 {[%emt 0:00:04]} 17. Qxg5 {[%emt 0:00:12]} Qe8 {[%emt 0:02:31]} 18. Ne2 {[%emt 0:09:04]} (18. Qxg7 $2 Qh5 19. h3 (19. h4 $2 Rag8 $19) 19... Rag8 $19) 18... Qg6 {[%emt 0:01:08]} 19. Qxg6 {[%emt 0:02:07]} Nxg6 {[%emt 0:00:01]} 20. Nc3 {[%emt 0:03:53]} Rh5 {[%emt 0:01:26]} 21. Rf2 {[%emt 0:07:35]} Rah8 {[%emt 0:00:20]} 22. Bf1 {[%emt 0:01:10]} Nge7 {[%emt 0:00:29]} 23. Na4 {[%emt 0:02:29] Hoping for Nc5+.} Kc7 {[%emt 0:04:13]} 24. Rc1 {[%emt 0:02:24]} Bg4 {[%emt 0:01:46]} (24... Kb8 $16 25. Be2 R5h6) 25. b4 $1 $18 {[%emt 0:02:31]} a6 {[%emt 0:00:08]} 26. Be2 {[%emt 0:03:07]} (26. Nc5 $1 $18 {is the precise move to win.}) 26... Bxe2 $16 {[%emt 0:01:31]} 27. Rxe2 {[%emt 0:00:03]} Nf5 {[%emt 0:00:33][%cal Of5g3]} 28. Rg2 {[%emt 0:00:25] g4 is the strong threat.} Nh6 {[%emt 0:00:39]} 29. g4 {[%emt 0:07:28]} Rh4 {[%emt 0:00:20]} 30. Be1 {[%emt 0:01:13]} Rxg4 {[%emt 0:02:39]} 31. Bg3+ {[%emt 0:00:06]} Kd7 {[%emt 0:00:15]} (31... Rxg3 $16 32. Rxg3 (32. hxg3 Ng4 $14) 32... Nf5) 32. Nc5+ {[%emt 0:00:49]} Ke8 $2 {[%emt 0:00:01]} (32... Kc8 {might work better.}) 33. Nxb7 $18 {[%emt 0:00:18]} Ne7 {[%emt 0:00:08]} 34. Bf4 {[%emt 0:01:32]} (34. Rc7 $1 $18 Rf8 35. Nd6+ Kd8 36. Ra7) 34... Rxg2+ $16 {[%emt 0:00:37]} 35. Kxg2 {[%emt 0:00:01] And now Rc7 would win.} Nhf5 {[%emt 0:00:06] [#]} (35... g5 $16 {is a better defense.} 36. Bxg5 Rg8) 36. Nd6+ $1 $18 {[%emt 0:01:17]} Kd7 {[%emt 0:02:48]} 37. Nxf5 {[%emt 0:00:22]} Nxf5 {[%emt 0:00:01][%mdl 4096] Endgame KRB-KRN} 38. Rc7+ {[%emt 0:00:11]} Ke6 {[%emt 0:00:01][%cal Og7g5]} 39. Rc6+ {[%emt 0:00:47]} Kd7 {[%emt 0:00:01]} 40. Rc7+ {[%emt 0:00:07]} ({Don't take} 40. Rxa6 $6 g5 41. Bxg5 Rg8) 40... Ke6 $1 {[%emt 0:00:01][%cal Og7g5]} 41. Kf2 {[%emt 0:31:20]} (41. Bg5 $18 {is more deadly.}) 41... g5 $16 {[%emt 0:33:43]} 42. Bg3 {[%emt 0:00:00]} ({Reject} 42. Bxg5 Rxh2+ 43. Kf1 Rxa2 $11) (42. Be5 $5 {[%cal Re5h8]} Rh3 43. Rc6+ Kd7 44. Rc3 $16 (44. Rxa6 Rf3+ 45. Ke2 Rxe3+ 46. Kf1 Rf3+ 47. Ke2 Re3+ 48. Kf2 Rf3+ 49. Ke2 Re3+ $11)) 42... Rf8 $1 {[%emt 0:00:00]} 43. Rc6+ {[%emt 0:00:00]} Kd7 {[%emt 0:00:00]} 44. Rxa6 {[%emt 0:00:00] Black must now prevent Be5.} Nxd4+ $2 {[%emt 0:00:00] [#] Black cannot hold the game after this.} ({Black should try} 44... Nxg3+ $14 45. Kxg3 Rf3+ 46. Kg4 Rxe3) 45. Ke1 $1 $18 {[%emt 0:00:00]} Nc2+ {[%emt 0:00:00]} (45... Nf5 $142) 46. Kd2 {[%emt 0:00:00]} Nxb4 {[%emt 0:00:00]} 47. Rd6+ {[%emt 0:00:00]} Kc8 $2 {[%emt 0:00:00]} (47... Ke8 {is more resistant.} 48. a3 Nd3 49. Rxd5 Rf6) 48. Rb6 {[%emt 0:00:00] Weighted Error Value: White=0.18 (very precise) /Black=0.30} 1-0

[Event "Israeli Championship 2022"]
[Site "Yosiah Arad"]
[Date "2022.12.13"]
[Round "9.10"]
[White "Sitbon, Itay"]
[Black "Postny, Evgeny"]
[Result "1/2-1/2"]
[ECO "D25"]
[WhiteElo "2092"]
[BlackElo "2588"]
[Annotator "TA"]
[PlyCount "135"]
[EventDate "2022.12.05"]
[EventType "swiss"]
[EventCountry "ISR"]
[SourceTitle "playchess.com"]
[Source "ChessBase"]
[SourceQuality "1"]
[TimeControl "40/5400+30:1800+30"]

{[%evp 9,135,40,38,20,27,19,33,28,28,19,36,29,31,7,19,0,0,-12,-10,-13,-8,-13,0,-3,-2,-36,-34,-25,-12,-11,-15,-16,0,-12,-18,-39,-36,-45,-13,-37,-43,-39,0,0,58,0,-6,-22,0,-6,0,0,0,-12,-8,-10,-10,-31,0,-69,0,-78,-79,-75,-29,-31,0,-21,-18,-22,-23,-13,0,0,0,-110,-50,-45,-20,-15,0,-60,0,0,0,-22,13,0,33,0,41,46,75,4,9,8,10,0,50,0,212,197,347,325,785,783,706,498,476,443,495,79,81,74,75,43,285,279,271,264,250,0,0,0,184,0,0,0]} 1. d4 {[%emt 0:00:03]} d5 {[%emt 0:00:10]} 2. c4 {[%emt 0:00:08]} dxc4 {[%emt 0:00:21]} 3. Nf3 {[%emt 0:00:15]} Nf6 {[%emt 0:00:13]} 4. e3 {[%emt 0:00:27]} b5 {[%emt 0:00:38]} 5. a4 {[%emt 0:01:41]} b4 {[%emt 0:00:07]} 6. Bxc4 {[%emt 0:00:04] D25: Queen's Gambit Accepted: 4 e3: sidelines and 4...Bg4.} e6 {[%emt 0:00:08]} 7. O-O {[%emt 0:00:31]} Be7 {[%emt 0:00:23]} 8. Qe2 {[%emt 0:04:44] White is slightly better.} Bb7 {[%emt 0:01:09] 8...0-0 is the modern continuation.} 9. Nbd2 {[%emt 0:00:52]} c5 {[%emt 0:01:45]} 10. dxc5 {[%emt 0:03:05]} Nbd7 {[%emt 0:01:36]} 11. Nb3 {[%emt 0:01:28]} (11. Bb5 {is interesting.} Qc7 12. Nb3 a6 13. Bxd7+ Qxd7 14. Bd2) 11... O-O $1 {[%emt 0:09:14]} 12. Rd1 {[%emt 0:02:47]} Qc7 {[%emt 0:00:56]} 13. Bd2 {[%emt 0:03:29]} a5 {[%emt 0:02:32]} 14. Rac1 {[%emt 0:02:25]} Nxc5 {[%emt 0:05:49]} 15. Nfd4 {[%emt 0:03:38]} Qb6 {[%emt 0:04:30]} (15... Nxa4 16. Nxe6 $1 Qc6 17. Nf4 $14) (15... Rfd8 {keeps more tension.} 16. f3 Qe5 17. Be1 Nd5) 16. Nxc5 {[%emt 0:01:04]} Bxc5 {[%emt 0:02:58]} 17. Be1 {[%emt 0:01:05]} Rfd8 {[%emt 0:06:02][%cal Rc5d4]} 18. Nb3 {[%emt 0:05:27]} Be7 {[%emt 0:02:03]} (18... Rxd1 $5 19. Rxd1 Rc8 $11) 19. f3 {[%emt 0:00:28]} Bc6 {[%emt 0:07:29]} 20. Rxd8+ {[%emt 0:06:53]} Rxd8 {[%emt 0:01:18] [#]} 21. Ra1 $146 {[%emt 0:08:17]} (21. Bb5 $5 {[%cal Rc1c6]} Bd5 22. Nd4 $11) ({Predecessor:} 21. Bf2 Bxa4 22. e4 Qb8 23. Nxa5 Bd6 24. Ra1 Bxh2+ 25. Kf1 Be8 26. g4 Bf4 27. Nb3 {0-1 (34) Jodorcovsky Werjivker,P (2207)-Mayeregger,A (2035) Asuncion 2019}) 21... e5 {[%emt 0:07:36][%cal Be6e5,Be5e4][%mdl 32]} 22. Bf2 {[%emt 0:07:02]} e4 $1 {[%emt 0:00:26]} 23. f4 {[%emt 0:02:53]} h6 {[%emt 0:03:22]} 24. h3 {[%emt 0:02:31]} g6 {[%emt 0:15:22]} 25. Nd4 {[%emt 0:00:44]} Bb7 {[%emt 0:00:38]} 26. Rc1 {[%emt 0:02:50]} Rc8 {[%emt 0:02:45]} (26... Kg7 $11) 27. Rc2 {[%emt 0:00:54]} (27. f5 $1 $14 Kh7 28. Rc2) 27... Kg7 $11 {[%emt 0:00:42]} 28. Kh2 {[%emt 0:02:30]} (28. Kh1 {feels hotter.} Nd5 29. f5 Bf6 30. fxg6 Bxd4 31. Bxd5 Rxc2 32. Qxc2 Bxd5 33. exd4 fxg6 34. Bg3) 28... Bc5 {[%emt 0:03:43]} (28... Ne8 {with more complications.} 29. f5 g5 30. Bg3 Nf6) 29. Nb3 {[%emt 0:01:17]} Bd6 {[%emt 0:00:37]} 30. Nd4 {[%emt 0:01:10]} Rd8 {[%emt 0:04:10]} 31. Kh1 {[%emt 0:00:44]} Bc5 {[%emt 0:04:05][%cal Rc5d4]} 32. Nb3 {[%emt 0:00:21]} Be7 {[%emt 0:00:07]} 33. Bb5 {[%emt 0:02:21] Inhibits Bc6.} (33. Nd4 {is more complex.} Rd7 34. Kg1 Nd5 35. Qg4) 33... Ne8 {[%emt 0:03:45][%cal Bf6e8,Be8d6,Bd6f5][%mdl 32]} 34. Nd4 {[%emt 0:08:13]} ({Better is} 34. f5 $1 $11) 34... Bf6 {[%emt 0:00:50]} (34... Nd6 $15) 35. Nc6 {[%emt 0:02:26]} (35. f5 $11) 35... b3 $17 {[%emt 0:03:17]} 36. Rc4 {[%emt 0:02:19]} Rc8 {[%emt 0:01:57]} (36... Rd3 $17 {Strongly threatening ...Nd6.} 37. Rxe4 Rd6 38. Rxe8 Bxc6) 37. Nd4 $11 {[%emt 0:03:12] Rxc8 is the strong threat.} Rd8 {[%emt 0:03:10]} 38. Be1 {[%emt 0:04:49]} Nd6 {[%emt 0:00:36]} 39. Rc1 {[%emt 0:00:20]} Bxd4 {[%emt 0:01:09]} (39... Nxb5 {simplifies} 40. Qxb5 Qxb5 41. axb5 a4) 40. exd4 {[%emt 0:00:03]} Nf5 {[%emt 0:00:26]} (40... Nxb5 {simplifies} 41. Qxb5 Qxb5 42. axb5 a4) 41. Qd2 {[%emt 0:31:18]} Qd6 {[%emt 0:08:19] Threatens to win with ...e3.} (41... Rxd4 42. Qxa5 Qxa5 43. Bxa5 $16) (41... Qxd4 $2 42. Qxd4+ Nxd4 43. Bxa5 $18) (41... Nxd4 $2 42. Qxa5 Qf6 43. Bc3 $16) 42. Bf2 {[%emt 0:00:00]} (42. Qxa5 $11 {remains equal.} Qxf4 43. Qc7) 42... Bd5 {[%emt 0:11:24]} (42... Nxd4 $6 43. Qc3 e3 44. Bxe3 $11) (42... e3 $17 43. Bxe3 Nxe3 44. Qxe3 Qxd4) 43. Kg1 $15 {[%emt 0:00:00]} h5 {[%emt 0:00:20]} (43... Qe6 $5 {[%cal Re4e3]} 44. Be1 (44. Qxa5 $2 e3 $19) 44... e3 $11) 44. Rc5 {[%emt 0:00:00]} Kh7 {[%emt 0:02:18]} 45. Bf1 {[%emt 0:00:00]} (45. Qxa5 $11 e3 46. Be1) 45... Ra8 {[%emt 0:02:58]} (45... Qe7 $15 46. Be3 (46. Qxa5 $2 e3 $19) 46... Be6) 46. Be3 $11 {[%emt 0:00:00]} (46. Rxa5 $2 e3 47. Bxe3 Rxa5 48. Qxa5 Nxe3 $19) 46... h4 {[%emt 0:01:24]} 47. Be2 {[%emt 0:00:00]} Ng3 {[%emt 0:02:29]} 48. Bf1 {[%emt 0:00:00]} Qd8 {[%emt 0:01:05]} 49. Qc3 {[%emt 0:00:00]} Be6 {[%emt 0:01:37]} 50. Kf2 {[%emt 0:00:00]} Qd6 {[%emt 0:01:31]} 51. Rxa5 {[%emt 0:00:00]} ({White should try} 51. Bc4 $16) 51... Rxa5 {[%emt 0:00:51]} 52. Qxa5 {[%emt 0:00:00]} Qc6 {[%emt 0:00:29]} 53. Bb5 {[%emt 0:01:22]} (53. d5 {looks sharper.} Qc2+ 54. Qd2 Bxd5 55. Qxc2 bxc2 56. b4) 53... Qc8 {[%emt 0:00:25]} (53... Qc2+ $11 54. Qd2 Nf5) 54. Qe1 {[%emt 0:02:08]} (54. Be2 $14) 54... Bd7 $2 {[%emt 0:01:46]} (54... Qc2+ $11 55. Qd2 Nf5) 55. Qc1 $18 {[%emt 0:00:54]} Qe8 {[%emt 0:00:48]} (55... Qb7 $142) 56. Qc4 {[%emt 0:00:44] And now Bxd7 would win.} Bxb5 {[%emt 0:00:57]} (56... Kg8 57. d5 (57. Qxb3 Bxb5 58. Qxb5 Qc8 $18) 57... Nf5 58. Bxd7 Qxd7 59. Qxe4 (59. Qxb3 Qc8 $18) 59... Qc7) 57. axb5 {[%emt 0:00:12][%mdl 4096] Endgame KQB-KQN} ({Less strong is} 57. Qxb5 Qc8 58. Qxb3 Qc7 $18) 57... Nf5 {[%emt 0:00:34]} 58. Qxb3 {[%emt 0:01:37]} Qd7 {[%emt 0:00:15]} 59. b6 {[%emt 0:01:08] Black must now prevent b7.} Qb7 {[%emt 0:00:05]} 60. Qb5 $2 {[%emt 0:00:47]} (60. d5 $18 {and the rest is easy.} Qa6 61. d6 Nxd6 62. Bc5 e3+ 63. Kxe3 Nf5+ 64. Kd2) 60... Qc8 $16 {[%emt 0:00:31]} 61. Qc5 {[%emt 0:00:34] Against Qc2+} ({But not} 61. b7 $6 Qc2+ 62. Qe2 Qb3 $11) 61... Qa6 {[%emt 0:00:07]} 62. Qc7 {[%emt 0:04:40]} Qd3 $2 {[%emt 0:01:38]} (62... Qa2 $1 $14) 63. Qxf7+ $18 {[%emt 0:02:41]} Kh6 {[%emt 0:00:06]} 64. Qf8+ {[%emt 0:00:06]} Kh7 {[%emt 0:00:09]} 65. Qf7+ {[%emt 0:04:14]} Kh6 {[%emt 0:00:07]} 66. Qf8+ {[%emt 0:00:07]} Kh7 {[%emt 0:00:05] [#]} 67. Qf7+ $2 {[%emt 0:01:14]} (67. Qa3 $1 $18 {[%cal Ra3d3] Hoping for Qxd3.} Qc2+ 68. Ke1) 67... Kh6 $11 {[%emt 0:00:08]} 68. Qf8+ {[%emt 0:00:02] Weighted Error Value: White=0.32/Black=0.24 (precise)} 1/2-1/2

[Event "Israeli Championship 2022"]
[Site "Yosiah Arad"]
[Date "2022.12.13"]
[Round "9.11"]
[White "Poleg, Matan"]
[Black "Zemach, Nadav"]
[Result "1/2-1/2"]
[ECO "D52"]
[WhiteElo "2291"]
[BlackElo "2402"]
[Annotator "TA"]
[PlyCount "66"]
[EventDate "2022.12.05"]
[EventType "swiss"]
[EventCountry "ISR"]
[SourceTitle "playchess.com"]
[Source "ChessBase"]
[SourceQuality "1"]
[TimeControl "40/5400+30:1800+30"]

{[%evp 23,66,14,16,0,20,0,0,0,0,-33,-29,-40,-28,-71,-77,-67,-67,-67,-58,-91,56,49,68,16,7,6,8,0,10,0,15,6,21,0,13,0,14,-13,-28,-29,22,-23,-37,-90,-14]} 1. d4 {[%emt 0:00:27]} Nf6 {[%emt 0:00:05]} 2. c4 {[%emt 0:00:19]} e6 {[%emt 0:00:04]} 3. Nf3 {[%emt 0:00:26]} d5 {[%emt 0:00:04]} 4. Nc3 {[%emt 0:00:29]} c6 {[%emt 1:32:17]} 5. Bg5 {[%emt 0:00:57]} Nbd7 {[%emt 0:00:00]} 6. e3 {[%emt 0:00:18]} Qa5 {[%emt 0:00:00]} 7. Nd2 {[%emt 0:01:42]} dxc4 {[%emt 0:00:00]} 8. Bxf6 {[%emt 0:01:01]} Nxf6 {[%emt 0:00:00]} 9. Nxc4 {[%emt 0:00:08]} Qc7 {[%emt 0:00:00]} 10. Be2 {[%emt 0:03:39]} Be7 {[%emt 0:00:00]} 11. Rc1 {[%emt 0:00:23]} O-O {[%emt 0:00:00]} 12. O-O {[%emt 0:02:43]} Rd8 {[%emt 0:00:00]} 13. Qb3 {[%emt 0:06:37] D52: Queen's Gambit Declined: Cambridge Springs Variation.} (13. Qc2 {is interesting.} c5 14. Nb5 Qb8 15. dxc5 Bxc5 16. Rfd1) 13... Bd7 {[%emt 0:00:00]} 14. Bf3 {[%emt 0:11:30]} Be8 {[%emt 0:00:00]} 15. Rfd1 {[%emt 0:01:15] The position is equal.} Rac8 {[%emt 0:00:00]} 16. e4 {[%emt 0:11:06]} b5 {[%emt 0:00:00] Against e5} 17. Ne3 {[%emt 0:01:26]} Qb6 {[%emt 0:00:00] [#]} 18. Ne2 $146 {[%emt 0:07:39][%cal Bc3e2,Be2d4,Bd4f5,Bf5e3,Be3c2][%mdl 32]} ({Predecessor:} 18. d5 cxd5 19. exd5 Bc5 20. Ne4 Nxe4 21. Bxe4 e5 22. Rc2 g6 23. g4 Bd4 24. Rdc1 Rxc2 25. Rxc2 {0-1 (47) Lou,V (2153)-Stojanovic,M (2488) Lenzerheide 2018}) 18... c5 {[%emt 0:00:00]} 19. d5 {[%emt 0:02:21][%cal Oa2a4]} c4 {[%emt 0:00:00] Inhibits a4.} 20. Qc3 {[%emt 0:00:20]} Bc5 {[%emt 0:00:00]} 21. Nd4 {[%emt 0:00:57]} e5 {[%emt 0:00:00] Against b4} (21... b4 $17 22. Qd2 c3 23. bxc3 bxc3) 22. Ndf5 $1 $14 {[%emt 0:04:46]} Qc7 {[%emt 0:00:00]} 23. Ng4 {[%emt 0:06:32] Prevents g6.} ({Better is} 23. g4 $14) 23... Nxg4 $11 {[%emt 0:00:00]} 24. Bxg4 {[%emt 0:00:03][%cal Od5d6] [#] aiming for d6!} Rb8 {[%emt 0:00:00]} 25. b3 {[%emt 0:03:58]} (25. Qg3 {is more complex.} g6 26. Be2 Qb6 27. b3) 25... g6 {[%emt 0:00:00]} 26. Ne3 {[%emt 0:02:02]} Qd6 {[%emt 0:00:00]} 27. bxc4 {[%emt 0:00:42]} b4 {[%emt 0:00:00]} 28. Qd3 {[%emt 0:01:23]} a5 {[%emt 0:12:00]} 29. Rd2 {[%emt 0:05:11]} Rb7 {[%emt 0:00:00]} 30. Nc2 {[%emt 0:01:14]} Rdb8 {[%emt 0:00:00][%mdl 1024] Black has compensation.} 31. Ne1 {[%emt 0:00:29]} a4 {[%emt 0:00:00]} (31... b3 $142) 32. Qe2 {[%emt 0:00:32]} h5 {[%emt 0:00:00]} 33. Bh3 {[%emt 0:02:06]} ({White should try} 33. Bf3 $15) 33... Rc7 {[%emt 0:00:00] Weighted Error Value: White=0.19 (very precise) /Black=0.17 (very precise)} (33... b3 $17 34. axb3 (34. Nd3 Ba3 $15) 34... axb3) 1/2-1/2